bitfinex/quotes_SOLUSD_20241001
["timestamp","ask_amount","ask_price","bid_price","bid_amount"]
[1727825351264,5.5285,144.71,144.66,6.9124764]
[1727825351661,5.5287,144.7,144.66,5.5301]
[1727825358071,5.5287,144.7,144.6,6.1987]
[1727825358072,5.5321,144.61,144.57,5.5335]
[1727825358287,5.5317,144.62,144.59,30.0]
[1727825358458,15.2528,144.63,144.59,30.0]
[1727825359170,15.2528,144.63,144.55,13.8358]
[1727825359474,15.2528,144.63,144.57,5.5335]
[1727825359677,5.532,144.62,144.57,5.5335]
[1727825360380,5.532,144.62,144.56,5.5339]
[1727825363763,5.5331,144.59,144.55,13.8358]
[1727825364072,5.5317,144.62,144.57,5.5336]
[1727825364381,5.5322,144.61,144.56,5.534]
[1727825364576,5.5318,144.62,144.57,6.91672869]
[1727825364772,5.5318,144.62,144.57,5.5335]
[1727825367264,5.5326,144.6,144.56,5.5339]
[1727825368162,5.5325,144.6,144.56,5.5339]
[1727825369973,5.5321,144.61,144.56,5.5339]
[1727825370286,5.5321,144.61,144.56,6.9171283]
[1727825370661,5.5321,144.61,144.56,5.5339]
[1727825372287,15.2528,144.63,144.56,5.5339]
[1727825372489,15.2528,144.63,144.55,13.8358]
[1727825372867,5.5333,144.58,144.54,5.5347]
[1727825373273,5.5336,144.57,144.53,5.5351]
[1727825373580,13.8298,144.62,144.53,5.5351]
[1727825373760,5.5333,144.58,144.53,5.5351]
[1727825374163,21.1548,144.57,144.52,20.1971448]
[1727825375091,5.5341,144.56,144.52,14.6616448]
[1727825375390,5.5348,144.54,144.52,0.8233448]
[1727825375684,5.5351,144.53,144.52,0.8233448]
[1727825377583,29.311984,144.53,144.52,0.8233448]
[1727825378084,5.5351,144.53,144.52,0.8233448]
[1727825378790,5.5348,144.54,144.52,0.8233448]
[1727825378983,5.5344,144.55,144.52,0.8233448]
[1727825380670,5.5351,144.53,144.52,0.8233448]
[1727825381474,5.5348,144.54,144.52,0.8233448]
[1727825384692,22.82202606,144.57,144.52,0.8233448]
[1727825384693,15.6211,144.57,144.52,0.8233448]
[1727825384890,5.5347,144.55,144.52,0.8233448]
[1727825385392,5.5341,144.56,144.52,6.3588448]
[1727825385791,21.155,144.57,144.52,6.3588448]
[1727825386296,5.5341,144.56,144.52,6.3588448]
[1727825386987,5.5341,144.56,144.52,0.8233448]
[1727825389697,5.5345,144.55,144.52,0.8233448]
[1727825393528,5.5341,144.56,144.52,0.8233448]
[1727825396988,6.6208,144.58,144.52,0.8233448]
[1727825397199,5.5346,144.55,144.52,0.8233448]
[1727825399718,6.6208,144.58,144.52,0.8233448]
[1727825400003,5.5351,144.53,144.52,0.8233448]
[1727825400506,5.5348,144.54,144.52,0.8233448]
[1727825400707,5.5351,144.53,144.52,0.8233448]
[1727825402693,5.5348,144.54,144.52,0.8233448]
[1727825403687,5.5351,144.53,144.52,0.8233448]
[1727825413619,29.311984,144.53,144.52,0.8233448]
[1727825413825,36.50294447,144.53,144.52,0.8233448]
[1727825414191,56.50294447,144.53,144.52,0.8233448]
[1727825414400,5.5376,144.47,144.43,27.2034]
[1727825415115,5.5364,144.5,144.45,5.5379]
[1727825415305,7.19096047,144.53,144.49,5.5363]
[1727825415504,5.5346,144.55,144.5,6.91986271]
[1727825415705,27.64581391,144.58,144.49,13.8412]
[1727825415906,5.5355,144.53,144.49,13.8412]
[1727825416115,5.5355,144.53,144.49,15.22520103]
[1727825416504,5.5362,144.51,144.46,19.3817]
[1727825417393,5.5362,144.51,144.46,13.844]
[1727825417593,5.5362,144.51,144.47,5.5374]
[1727825417797,13.8354,144.56,144.48,1.38415342]
[1727825418015,5.5352,144.53,144.48,6.92095342]
[1727825418213,5.5356,144.52,144.47,18.43784205]
[1727825418419,5.5356,144.52,144.47,5.5374]
[1727825419121,13.8354,144.56,144.48,12.90044205]
[1727825419413,5.5351,144.53,144.48,18.43714205]
[1727825419906,5.5366,144.5,144.46,26.74444205]
[1727825420103,5.5367,144.49,144.45,5.5379]
[1727825420311,5.5355,144.52,144.47,5.5373]
[1727825420496,23.776884,144.55,144.46,5.5375]
[1727825420695,5.5365,144.5,144.45,19.3831]
[1727825421898,5.5365,144.5,144.46,6.92203543]
[1727825422103,5.5352,144.53,144.49,5.5366]
[1727825422309,5.5357,144.52,144.48,5.5369]
[1727825422499,5.5357,144.52,144.47,32.28104205]
[1727825423718,5.5352,144.53,144.48,1.38408335]
[1727825423923,5.5352,144.53,144.48,5.5368]
[1727825424308,8.81738059,144.56,144.49,14.28439099]
[1727825424511,22.25252322,144.57,144.49,14.28439099]
[1727825424512,5.5339,144.57,144.52,5.5354]
[1727825424819,5.534,144.56,144.52,6.91907322]
[1727825425119,5.534,144.56,144.51,26.73984205]
[1727825425120,7.18989843,144.6,144.51,26.73984205]
[1727825425324,5.535,144.54,144.49,5.5366]
[1727825425535,5.5348,144.54,144.49,5.5366]
[1727825425823,5.5348,144.54,144.5,5.5362]
[1727825426035,5.5355,144.52,144.48,35.507]
[1727825426214,5.5355,144.52,144.48,41.0437]
[1727825426613,5.5352,144.53,144.49,6.92049839]
[1727825426818,8.09443614,144.59,144.51,13.8398]
[1727825426999,5.5343,144.56,144.51,19.3754]
[1727825427923,5.5344,144.55,144.51,19.3754]
[1727825429625,5.5341,144.56,144.51,19.3754]
[1727825429923,21.02189843,144.6,144.48,69.50916607]
[1727825429924,5.535,144.54,144.5,5.5362]
[1727825431027,5.535,144.54,144.49,5.5366]
[1727825431526,5.5353,144.53,144.49,5.5366]
[1727825432827,5.5348,144.54,144.5,5.5363]
[1727825435140,5.5345,144.55,144.51,5.5359]
[1727825435323,5.534,144.56,144.52,6.9191485]
[1727825435723,5.5337,144.57,144.5,20.15976607]
[1727825436047,7.18989843,144.6,144.53,5.5349]
[1727825436717,5.5335,144.58,144.53,5.5349]
[1727825437127,5.5335,144.58,144.54,1.38351041]
[1727825437637,5.533,144.59,144.54,13.31251041]
[1727825438313,5.5333,144.58,144.54,11.929]
[1727825438645,7.18989843,144.6,144.55,1.3834334]
[1727825438820,36.08032322,144.64,144.55,1.3834334]
[1727825438821,5.531,144.64,144.59,5.5328]
[1727825439020,112.20304814,144.69,144.59,15.3406]
[1727825439212,5.5331,144.59,144.55,29.176]
[1727825439625,5.5331,144.59,144.55,34.7103]
[1727825439831,5.5325,144.6,144.55,34.7103]
[1727825440345,5.533,144.59,144.55,29.176]
[1727825443920,5.5321,144.61,144.55,29.176]
[1727825444136,5.5321,144.61,144.56,1.38319128]
[1727825444626,5.5321,144.61,144.55,29.176]
[1727825444829,5.5321,144.61,144.56,1.38319225]
[1727825445139,5.5321,144.61,144.57,5.5336]
[1727825445347,64.85626014,144.67,144.58,15.21606485]
[1727825445523,64.85626014,144.67,144.6,5.5322]
[1727825445524,5.5309,144.65,144.6,5.5322]
[1727825445724,5.5309,144.65,144.61,1.38287622]
[1727825446020,5.5309,144.65,144.61,5.532]
[1727825446220,5.5311,144.64,144.6,19.3631]
[1727825447340,5.5306,144.65,144.61,6.91487652]
[1727825447525,5.5306,144.65,144.6,19.3632]
[1727825448424,5.532,144.62,144.57,19.367]
[1727825449943,8.09443614,144.65,144.57,19.367]
[1727825449944,5.5314,144.63,144.58,5.5329]
[1727825451623,5.5318,144.62,144.58,5.5329]
[1727825454548,5.5314,144.63,144.58,5.5329]
[1727825454758,5.531,144.64,144.59,5.5326]
[1727825455125,5.5314,144.63,144.59,5.5326]
[1727825456343,5.5314,144.63,144.6,1.38294226]
[1727825456552,13.8269,144.65,144.57,13.8337]
[1727825456755,21.92133614,144.65,144.57,13.8337]
[1727825457449,21.92133614,144.65,144.56,6.4732]
[1727825457755,5.5325,144.6,144.56,12.0071]
[1727825458143,13.8269,144.65,144.56,12.0071]
[1727825458338,5.5322,144.61,144.56,12.0071]
[1727825458953,5.5332,144.58,144.56,6.4732]
[1727825459242,5.533,144.59,144.56,6.4732]
[1727825460355,5.5322,144.61,144.57,6.91686647]
[1727825460522,5.5317,144.62,144.58,5.5331]
[1727825460855,5.5316,144.63,144.59,6.91574206]
[1727825461424,21.02414237,144.66,144.58,13.8328]
[1727825461652,21.02414237,144.66,144.56,6.4732]
[1727825461653,5.5321,144.61,144.56,6.4732]
[1727825461951,21.02414237,144.66,144.56,6.4732]
[1727825461952,13.8279,144.64,144.56,6.4732]
[1727825462122,5.5331,144.59,144.56,6.4732]
[1727825462954,5.5325,144.6,144.56,12.0072]
[1727825464445,7.19824237,144.66,144.57,28.1072593]
[1727825464753,1.19979018,144.69,144.54,27.6739]
[1727825464754,23.40166352,144.69,144.63,12.89033191]
[1727825464932,42.10970696,144.73,144.64,1.38258404]
[1727825465133,7.20255494,144.7,144.64,28.04413191]
[1727825465336,8.09443614,144.73,144.64,28.04413191]
[1727825465667,5.5286,144.71,144.66,5.5298]
[1727825465836,8.09443614,144.73,144.65,5.5305]
[1727825465837,5.5288,144.7,144.65,5.5305]
[1727825466032,5.5288,144.7,144.65,6.4732]
[1727825466338,8.09443614,144.74,144.65,6.4732]
[1727825466541,5.5302,144.66,144.64,15.1538]
[1727825466729,5.5305,144.65,144.64,15.1538]
[1727825467164,5.5302,144.66,144.64,15.1538]
[1727825467364,5.5305,144.65,144.61,6.4732]
[1727825467541,13.8232,144.69,144.61,6.4732]
[1727825467744,5.5317,144.62,144.6,15.1538]
[1727825470141,13.8254,144.67,144.6,15.1538]
[1727825470456,5.5307,144.65,144.6,20.6862]
[1727825471673,13.8218,144.7,144.61,15.21239788]
[1727825472536,5.5299,144.67,144.62,5.5314]
[1727825473249,5.5287,144.7,144.65,5.5305]
[1727825473568,21.03450061,144.73,144.64,6.0316]
[1727825473766,5.5305,144.66,144.64,6.0316]
[1727825474268,13.8231,144.69,144.6,21.1854]
[1727825474439,5.532,144.62,144.6,21.1854]
[1727825475552,13.8254,144.67,144.6,21.1854]
[1727825475751,5.5314,144.63,144.6,21.1854]
[1727825476057,13.8254,144.67,144.6,21.1854]
[1727825476256,13.8254,144.67,144.58,13.8326]
[1727825476257,5.5321,144.61,144.57,28.0734]
[1727825476465,5.5321,144.61,144.57,22.5399]
[1727825477145,5.5321,144.61,144.57,28.0735]
[1727825480456,5.5314,144.63,144.59,5.5328]
[1727825480654,5.5309,144.65,144.6,6.91522655]
[1727825480854,5.5309,144.65,144.57,22.5399]
[1727825480855,5.5303,144.66,144.61,13.8298]
[1727825481185,5.5307,144.65,144.6,5.5324]
[1727825482058,5.5303,144.66,144.61,5.532]
[1727825482261,5.5303,144.66,144.62,1.38259686]
[1727825482771,5.5298,144.67,144.63,6.91380906]
[1727825483277,7.21851239,144.71,144.64,5.5308]
[1727825483447,5.5291,144.69,144.65,1.38236939]
[1727825483646,5.5291,144.69,144.65,6.91286939]
[1727825483850,5.5291,144.69,144.66,1.38229099]
[1727825484270,5.5291,144.69,144.65,5.5305]
[1727825484457,5.5291,144.69,144.64,41.8977]
[1727825484664,5.5295,144.68,144.64,41.8977]
[1727825485373,5.5291,144.69,144.64,41.8977]
[1727825487476,23.776884,144.71,144.6,22.5399]
[1727825487779,5.5306,144.65,144.61,5.5321]
[1727825488157,5.5302,144.66,144.62,6.91435038]
[1727825488369,5.5302,144.66,144.62,5.5317]
[1727825488582,5.5302,144.66,144.61,5.532]
[1727825493069,5.5302,144.66,144.62,5.5317]
[1727825493561,13.8231,144.69,144.6,36.3707]
[1727825493985,5.531,144.64,144.6,41.9031]
[1727825495678,5.5304,144.66,144.62,5.5317]
[1727825495866,5.5309,144.64,144.6,41.903]
[1727825496486,13.8231,144.69,144.6,36.3707]
[1727825496657,5.5305,144.66,144.61,5.532]
[1727825497368,5.5305,144.66,144.62,5.5317]
[1727825497572,5.5305,144.66,144.63,1.38260599]
[1727825497886,5.5306,144.65,144.61,5.532]
[1727825498784,5.532,144.62,144.6,16.5083]
[1727825498981,13.8268,144.65,144.56,21.0944]
[1727825499281,5.5322,144.61,144.56,26.6283]
[1727825500679,5.5325,144.6,144.56,21.0944]
[1727825500882,13.8268,144.65,144.56,21.0944]
[1727825500883,5.5329,144.59,144.56,21.0944]
[1727825501260,49.5017,144.68,144.56,21.0944]
[1727825501461,5.5341,144.56,144.52,6.0697]
[1727825501684,13.831,144.61,144.52,6.0697]
[1727825501892,5.5349,144.54,144.51,15.0247]
[1727825502583,6.3596,144.61,144.48,6.0697]
[1727825502785,5.5363,144.5,144.48,6.0697]
[1727825503285,5.5363,144.5,144.47,15.1238]
[1727825503892,5.5368,144.49,144.44,25.5961]
[1727825504181,5.5362,144.51,144.46,5.5377]
[1727825506170,5.5363,144.5,144.45,5.5381]
[1727825506374,5.5371,144.48,144.44,20.0575]
[1727825506582,13.8385,144.53,144.44,20.0575]
[1727825506784,13.8385,144.53,144.45,5.5381]
[1727825506785,5.5367,144.49,144.45,5.5381]
[1727825507177,13.8385,144.53,144.44,6.2111]
[1727825507888,15.3462,144.54,144.42,5.5392]
[1727825507889,5.5375,144.47,144.42,5.5392]
[1727825508886,6.2043,144.52,144.41,13.8491]
[1727825509488,5.5378,144.46,144.41,19.3888]
[1727825510287,13.8404,144.51,144.41,13.8491]
[1727825510593,13.8404,144.51,144.42,5.5393]
[1727825510594,5.5374,144.48,144.42,5.5393]
[1727825510979,5.5376,144.47,144.42,5.5393]
[1727825512182,6.2043,144.52,144.41,13.8491]
[1727825512386,6.2043,144.52,144.38,48.35253512]
[1727825512387,6.2043,144.52,144.43,13.8469]
[1727825512686,5.5371,144.48,144.43,19.3858]
[1727825514680,13.40615016,144.52,144.43,13.8469]
[1727825514892,7.20185016,144.52,144.44,1.38436688]
[1727825515195,5.5368,144.49,144.44,5.5385]
[1727825518988,7.20185016,144.52,144.45,13.8451]
[1727825519292,5.5352,144.53,144.48,5.5368]
[1727825520282,5.5349,144.54,144.5,5.5362]
[1727825521278,13.8364,144.55,144.43,21.3349]
[1727825521479,5.5369,144.49,144.44,5.5386]
[1727825523580,5.5369,144.49,144.45,5.5381]
[1727825524084,12.00714382,144.54,144.43,21.3349]
[1727825524085,6.2043,144.54,144.43,21.3349]
[1727825524289,5.536,144.51,144.46,5.5376]
[1727825524600,6.2043,144.54,144.46,5.5376]
[1727825524804,5.5363,144.5,144.46,5.5376]
[1727825525010,6.2043,144.54,144.46,5.5376]
[1727825525011,5.536,144.51,144.46,5.5376]
[1727825526285,5.5352,144.53,144.47,13.8431]
[1727825526492,5.5357,144.52,144.48,5.5369]
[1727825526888,7.19488466,144.57,144.56,5.534]
[1727825527085,15.3462,144.64,144.51,23.776884]
[1727825527086,5.5314,144.63,144.57,5.5335]
[1727825527301,5.5314,144.63,144.58,1.38320125]
[1727825527487,5.5317,144.62,144.56,13.8345]
[1727825527686,5.5317,144.62,144.57,1.38316053]
[1727825528297,7.22502961,144.67,144.58,13.8324]
[1727825528622,7.22502961,144.67,144.61,5.532]
[1727825528623,5.5305,144.66,144.61,5.532]
[1727825528804,5.5306,144.65,144.6,5.5324]
[1727825529687,7.22502961,144.67,144.58,13.8324]
[1727825529892,5.5309,144.64,144.59,6.91575688]
[1727825531009,5.5309,144.64,144.59,1.38305688]
[1727825531222,7.22502961,144.67,144.6,13.8305]
[1727825531508,15.3462,144.72,144.65,5.5305]
[1727825531509,5.5289,144.7,144.65,5.5305]
[1727825532290,15.3462,144.72,144.63,19.3588]
[1727825532613,5.5295,144.68,144.63,19.3588]
[1727825534286,5.5295,144.68,144.64,1.38252881]
[1727825534609,21.03225522,144.73,144.65,5.5305]
[1727825534610,5.5287,144.7,144.65,5.5305]
[1727825534810,7.21275522,144.73,144.66,1.38236676]
[1727825535108,7.21275522,144.73,144.63,13.8278]
[1727825535319,5.5286,144.71,144.65,5.5305]
[1727825535611,5.5286,144.71,144.66,5.5301]
[1727825535803,5.5287,144.7,144.64,5.5305]
[1727825537387,7.21275522,144.73,144.64,5.5305]
[1727825537586,5.5291,144.69,144.64,5.5305]
[1727825538502,7.21275522,144.73,144.63,13.8278]
[1727825538713,5.5286,144.7,144.65,5.5305]
[1727825538915,5.5286,144.7,144.66,30.0]
[1727825539407,23.776884,144.72,144.66,30.0]
[1727825539911,7.21275522,144.73,144.64,30.0]
[1727825540911,7.21275522,144.73,144.65,15.20885831]
[1727825541120,7.21275522,144.73,144.66,35.5301]
[1727825541706,7.21275522,144.73,144.66,30.0]
[1727825543017,7.21275522,144.73,144.67,6.91223026]
[1727825543311,23.776884,144.75,144.67,6.91223026]
[1727825543604,30.99447585,144.75,144.67,5.5298]
[1727825543809,30.99447585,144.75,144.67,30.0]
[1727825544012,5.5283,144.71,144.67,30.0]
[1727825544306,5.5288,144.7,144.65,35.8403]
[1727825544512,5.5288,144.7,144.66,5.5301]
[1727825545116,5.5283,144.71,144.66,5.5301]
[1727825545815,5.5283,144.71,144.66,6.91241823]
[1727825545990,5.5283,144.71,144.65,35.8403]
[1727825545991,5.5283,144.71,144.67,1.38228524]
[1727825546196,5.5287,144.7,144.65,35.8403]
[1727825546398,5.5283,144.71,144.66,1.38226243]
[1727825546609,5.529,144.7,144.67,1.38223778]
[1727825547291,5.529,144.7,144.66,5.5302]
[1727825548494,13.8183,144.74,144.65,35.8403]
[1727825548693,13.8183,144.74,144.65,22.0139]
[1727825549689,23.776884,144.73,144.65,22.0139]
[1727825549894,23.776884,144.74,144.65,22.0139]
[1727825551106,7.21759185,144.75,144.66,1.38249294]
[1727825552200,5.5285,144.71,144.66,15.20749294]
[1727825552703,5.5285,144.71,144.66,20.73749294]
[1727825552892,5.5285,144.71,144.67,5.5297]
[1727825553091,5.5285,144.71,144.68,1.38216787]
[1727825553804,5.5286,144.7,144.66,13.825]
[1727825554005,5.5286,144.7,144.66,19.3551]
[1727825555094,5.5286,144.7,144.66,13.825]
[1727825557191,5.5291,144.69,144.65,22.0139]
[1727825558302,5.5291,144.69,144.66,1.38230183]
[1727825558501,5.5291,144.69,144.65,22.0139]
[1727825558797,5.5291,144.69,144.66,1.38232071]
[1727825559621,5.5287,144.7,144.66,1.38232071]
[1727825560136,5.5287,144.7,144.66,6.91242071]
[1727825560302,5.5287,144.7,144.66,5.5301]
[1727825561608,13.8193,144.73,144.65,35.84]
[1727825561802,5.5294,144.68,144.65,22.0139]
[1727825563203,5.5302,144.66,144.65,15.9086]
[1727825564010,5.5299,144.67,144.65,15.9086]
[1727825566405,5.5299,144.67,144.63,5.5312]
[1727825566606,5.5303,144.66,144.62,25.7245]
[1727825566812,23.776884,144.72,144.62,6.3642]
[1727825566813,13.8229,144.69,144.62,6.3642]
[1727825567013,5.5309,144.65,144.62,6.3642]
[1727825567231,13.8229,144.69,144.62,6.3642]
[1727825567917,5.531,144.64,144.62,6.3642]
[1727825568306,5.5306,144.65,144.62,6.3642]
[1727825572314,5.5305,144.66,144.62,6.3642]
[1727825572931,5.5306,144.65,144.62,6.3642]
[1727825573106,5.5313,144.63,144.62,6.3642]
[1727825573618,13.8248,144.67,144.62,6.3642]
[1727825573619,5.531,144.64,144.62,6.3642]
[1727825573824,5.5306,144.65,144.62,6.3642]
[1727825574336,5.5316,144.63,144.61,15.6564]
[1727825576320,5.531,144.64,144.61,15.6564]
[1727825581017,5.5314,144.63,144.61,15.6564]
[1727825581547,5.5339,144.57,144.54,6.3642]
[1727825582048,29.6853,144.64,144.54,6.3642]
[1727825582218,23.776884,144.63,144.54,6.3642]
[1727825582721,5.533,144.59,144.54,11.8988]
[1727825583621,15.97065229,144.67,144.55,1.38333737]
[1727825583839,77.6397,144.72,144.55,1.38333737]
[1727825583840,49.828,144.72,144.6,6.3642]
[1727825584021,5.5303,144.66,144.61,6.9148544]
[1727825584223,5.5298,144.67,144.61,1.3827544]
[1727825584539,5.5291,144.69,144.64,5.5306]
[1727825584721,5.5291,144.69,144.65,1.38250092]
[1727825584918,15.8574,144.72,144.63,13.8276]
[1727825585334,5.5287,144.7,144.65,5.5302]
[1727825585532,38.20953558,144.75,144.67,5.5297]
[1727825585718,5.5283,144.71,144.66,35.0118]
[1727825585920,5.5289,144.7,144.66,29.4817]
[1727825586119,109.45373382,144.76,144.63,13.8281]
[1727825586324,5.5295,144.68,144.63,13.8281]
[1727825586634,5.5299,144.67,144.63,13.8281]
[1727825587232,5.5295,144.68,144.63,19.3593]
[1727825588528,5.5298,144.67,144.63,13.8281]
[1727825588844,5.5298,144.67,144.63,19.3594]
[1727825589248,13.8205,144.72,144.62,15.6564]
[1727825589420,50.0,144.74,144.62,15.6564]
[1727825589625,5.5307,144.65,144.62,15.6564]
[1727825590358,13.8223,144.7,144.62,15.6564]
[1727825590528,5.5303,144.66,144.62,15.6564]
[1727825590723,5.531,144.64,144.62,15.6564]
[1727825590919,5.5313,144.63,144.6,6.3642]
[1727825591831,5.5321,144.61,144.58,15.6564]
[1727825592036,13.8262,144.66,144.56,6.3642]
[1727825592037,5.5327,144.6,144.56,6.3642]
[1727825592230,5.5329,144.59,144.56,6.3642]
[1727825592433,5.5332,144.58,144.56,6.3642]
[1727825592629,5.5332,144.58,144.54,29.493]
[1727825592839,5.5336,144.57,144.54,29.493]
[1727825593032,5.5336,144.57,144.54,15.6564]
[1727825593433,5.5331,144.59,144.54,15.6564]
[1727825593663,5.5325,144.6,144.55,6.91752261]
[1727825593941,20.318,144.65,144.56,1.38322075]
[1727825594143,5.5317,144.62,144.57,5.5333]
[1727825594341,5.5317,144.62,144.58,6.91619271]
[1727825595144,13.8267,144.65,144.58,6.91619271]
[1727825595352,13.8267,144.65,144.55,13.8352]
[1727825595353,57.329,144.68,144.59,6.91574665]
[1727825595654,5.531,144.64,144.59,5.5328]
[1727825596181,5.5306,144.65,144.61,5.532]
[1727825596450,5.5306,144.65,144.59,20.4653]
[1727825596451,5.5302,144.66,144.62,1.38267996]
[1727825596627,5.5302,144.66,144.62,5.5316]
[1727825597244,13.821,144.71,144.62,5.5316]
[1727825597435,5.5301,144.67,144.62,5.5316]
[1727825598043,13.821,144.71,144.62,5.5316]
[1727825598243,5.5302,144.66,144.62,5.5316]
[1727825598638,5.5307,144.65,144.61,34.6195]
[1727825600737,30.99903071,144.7,144.61,15.258]
[1727825600933,5.532,144.62,144.59,6.6338]
[1727825602671,5.5313,144.63,144.59,12.1665]
[1727825602837,5.531,144.64,144.59,12.1665]
[1727825603038,5.531,144.64,144.6,5.5323]
[1727825605753,5.5305,144.66,144.61,6.91489743]
[1727825605961,5.5305,144.66,144.61,5.5321]
[1727825606253,13.8241,144.68,144.59,12.1665]
[1727825606849,5.5316,144.63,144.59,6.6338]
[1727825607060,13.8262,144.66,144.59,6.6338]
[1727825607348,5.5325,144.6,144.55,6.6338]
[1727825607542,5.533,144.59,144.55,12.1681]
[1727825608156,5.5336,144.57,144.55,6.6338]
[1727825608546,5.5333,144.58,144.55,6.6338]
[1727825609249,13.8297,144.62,144.55,6.6338]
[1727825609460,5.5338,144.57,144.55,6.6338]
[1727825610967,5.5329,144.59,144.55,6.6338]
[1727825611267,72.923284,144.65,144.56,5.5336]
[1727825611575,5.5325,144.6,144.55,26.0032]
[1727825612543,5.5337,144.57,144.55,6.6338]
[1727825613054,5.5331,144.59,144.55,6.6338]
[1727825613760,5.5331,144.59,144.55,12.1681]
[1727825614367,13.8288,144.63,144.55,12.1681]
[1727825614555,5.5321,144.61,144.57,5.5336]
[1727825614769,5.5321,144.61,144.56,13.8346]
[1727825614770,5.5321,144.61,144.56,19.3685]
[1727825616671,7.22553956,144.65,144.58,5.5331]
[1727825616851,5.5322,144.61,144.56,13.8346]
[1727825617050,5.5322,144.61,144.56,19.3685]
[1727825617248,5.5322,144.61,144.57,1.38309727]
[1727825617670,5.5322,144.61,144.56,19.3685]
[1727825617869,5.5326,144.6,144.56,19.3685]
[1727825618078,5.5332,144.59,144.55,6.6338]
[1727825619561,13.8296,144.62,144.55,6.6338]
[1727825619779,5.5333,144.58,144.55,6.6338]
[1727825623267,5.5329,144.59,144.55,12.1681]
[1727825625974,5.5329,144.59,144.55,6.6338]
[1727825626561,13.8296,144.62,144.55,6.6338]
[1727825626755,5.5333,144.58,144.55,6.6338]
[1727825627481,13.8296,144.62,144.55,6.6338]
[1727825627660,5.5329,144.59,144.55,6.6338]
[1727825627976,13.8296,144.62,144.55,6.6338]
[1727825628852,5.5339,144.57,144.55,6.6338]
[1727825629057,5.5348,144.54,144.51,6.4264]
[1727825629455,13.8336,144.58,144.51,6.4264]
[1727825629652,5.5351,144.53,144.51,6.4264]
[1727825630056,5.5346,144.55,144.51,6.4264]
[1727825630558,5.5348,144.54,144.51,6.4264]
[1727825633388,5.5345,144.55,144.51,6.4264]
[1727825634574,5.5348,144.54,144.51,6.4264]
[1727825635571,13.8336,144.58,144.51,11.9622]
[1727825635757,5.534,144.56,144.52,5.5355]
[1727825635958,5.534,144.56,144.52,6.91909744]
[1727825636170,5.534,144.56,144.52,5.5355]
[1727825637180,5.534,144.56,144.53,1.38360845]
[1727825637566,5.534,144.56,144.52,5.5355]
[1727825637883,5.534,144.56,144.51,6.4264]
[1727825638073,5.534,144.56,144.52,5.5355]
[1727825638794,7.22882218,144.59,144.53,1.38353408]
[1727825638961,5.5328,144.59,144.55,5.5343]
[1727825639160,5.5328,144.59,144.56,1.3833241]
[1727825639387,5.5328,144.59,144.53,13.8376]
[1727825639680,5.5328,144.59,144.55,6.91763057]
[1727825640085,5.5328,144.59,144.55,5.5343]
[1727825640285,5.5328,144.59,144.54,5.5347]
[1727825640675,5.5327,144.6,144.56,5.5338]
[1727825640876,5.5327,144.6,144.56,21.6083]
[1727825642183,5.5329,144.59,144.56,16.0745]
[1727825642577,7.23017465,144.63,144.56,16.0745]
[1727825642761,5.5322,144.61,144.57,6.91661822]
[1727825642964,13.8279,144.64,144.57,6.91661822]
[1727825643175,5.5322,144.61,144.57,6.91661822]
[1727825644486,5.5322,144.61,144.57,5.5335]
[1727825646080,7.22947828,144.66,144.58,1.38305767]
[1727825646289,7.22947828,144.66,144.59,23.776884]
[1727825646485,22.22245592,144.68,144.62,16.0745]
[1727825646486,5.5297,144.68,144.62,16.0745]
[1727825646672,5.5297,144.68,144.64,5.5309]
[1727825646873,5.5297,144.68,144.65,1.38243199]
[1727825647402,22.33962,144.72,144.65,1.38243199]